Cogmind - Beta 11.1 @@@ ROGUE MODE // 2022.09.22 @ 00:16:43 Player: DuckBoy Result: Destroyed by L-31 Rogue with Katana Performance ------------- Evolutions (2) 1000 Regions Visited (3) 600 Robots Destroyed (27) 135 Value Destroyed (700) 700 Prototype IDs (1) 20 Alien Tech Used (0) 0 Bonus (0) 0 TOTAL SCORE: 2455 Bonus ------- None Cogmind --------- Core Integrity 0/550 Matter 280/300 Energy 85/100 System Corruption 22% Temperature Cool (9) Movement Core (50) Location -8/Materials Parts ------- > --- POWER (1) -------- (None) > --- PROPULSION (3) --- (None) > --- UTILITY (5) ------ Advanced Visual Processing Unit Improved Signal Interpreter > --- WEAPON (2) ------- Katana > --- INVENTORY (5) ---- Improved Heat Sink Peak State ------------ > --- POWER ------------ Light Deuterium Engine > --- PROPULSION ------- Light Treads Aluminum Leg Aerolev Unit > --- UTILITY ---------- Structural Scanner Improved Signal Interpreter Terrain Scan Processor Core Shielding Light Armor Plating > --- WEAPON ----------- Spread Laser > --- INVENTORY -------- Ion Engine Hover Unit Improved Heat Sink EM Pulse Gun Heavy Assault Rifle [Rating: 19] Favorites ----------- Power Improved Ion Engine Engine Improved Ion Engine Propulsion Aluminum Leg Treads Light Treads Leg Aluminum Leg Wheel Wheel Hover Unit Aerolev Unit Utility Structural Scanner Device Structural Scanner Processor Terrain Scan Processor Protection Light Armor Plating Weapon Spread Laser Energy Gun Spread Laser Ballistic Gun Heavy Assault Rifle Launcher Grenade Launcher Slashing Weapon Katana Build | -11 -10 -9 -8 ------- Run | Scr Mat Mat Mat Slots Evolved 4 | . . 2 2 Power . | . . . . Propulsion 1 | . . . 1 Utility 3 | . . 2 1 Weapon . | . . . . Parts Attached 41 | 5 2 12 22 Power 8 | 1 . 3 4 Engine 8 | 1 . 3 4 Core . | . . . . Reactor . | . . . . Propulsion 14 | 2 . 3 9 Treads 4 | . . . 4 Leg 7 | 2 . 3 2 Wheel 1 | . . . 1 Hover 2 | . . . 2 Flight . | . . . . Utility 9 | . 1 3 5 Device 1 | . 1 . . Storage . | . . . . Processor 5 | . . 3 2 Hackware . | . . . . Protection 3 | . . . 3 Artifact . | . . . . Weapon 10 | 2 1 3 4 Energy Gun 7 | 2 . 3 2 Energy Cannon . | . . . . Ballistic Gun 1 | . . . 1 Ballistic Cannon . | . . . . Launcher 1 | . 1 . . Special Weapon . | . . . . Impact Weapon . | . . . . Slashing Weapon 1 | . . . 1 Piercing Weapon . | . . . . Special Melee Weapon . | . . . . Unidentified Prototypes 1 | . . . 1 Corrupted Parts 2 | . . . 2 System Corruption 20 | . . . 20 Parts Lost 25 | . . 3 22 Power 5 | . . 1 4 Propulsion 9 | . . . 9 Utility 5 | . . 1 4 Weapon 6 | . . 1 5 Highest Loss Streak 18 | . . 2 18 To Critical Strikes . | . . . . Average Slot Usage (%) 75 | . 75 79 73 Engine 9 | . 14 10 6 Treads 4 | . . . 9 Leg 15 | . 28 22 6 Hover 1 | . . . 3 Device 8 | . 4 11 7 Processor 16 | . . 21 17 Protection 4 | . . . 10 Energy Gun 12 | . 17 11 11 Launcher 2 | . 10 3 . Naked Turns . | . . . . Heaviest Build 17 | 9 11 13 17 Greatest Support 40 | 20 20 20 40 Greatest Overweight (x) 2 | 1 . . 2 Average Overweight (x) . | . . . . Largest Inventory Capacity 5 | 5 5 5 5 Average Capacity 5 | 5 5 5 5 Most Carried 5 | . 2 5 5 Average Carried 3 | . 1 3 4 Final Capacity 5 | 5 5 5 5 Final Carried 5 | . 2 5 1 Class Distribution -------------------- 65% | Mutant 34% | Scavenger-Mutant Dominant Class ---------------- Mutant | -10/Materials Mutant | -9/Materials Scavenger-Mutant | -8/Materials Resources | -11 -10 -9 -8 ----------- Run | Scr Mat Mat Mat Matter Collected 633 | 115 50 233 235 Remotely . | . . . . Salvage Created 680 | . 67 286 327 Parts 44 | . 9 11 24 Haulers Intercepted 1 | . . . 1 Recyclers Shooed 1 | . . 1 . Parts Field Recycled . | . . . . Retrieved Matter . | . . . . Parts Self-Destructed . | . . . . Prevented . | . . . . Kills | -11 -10 -9 -8 ------- Run | Scr Mat Mat Mat Combat Hostiles Destroyed 19 | . 3 8 8 Guns 14 | . . 6 8 AOE 5 | . 3 2 . Classes Destroyed 8 | . 3 1 4 Builder 2 | . 1 1 . Hauler 1 | . . . 1 Recycler 1 | . . . 1 Watcher 4 | . 2 1 1 Swarmer 6 | . 3 . 3 Grunt 10 | . . 8 2 Duelist 1 | . . . 1 Sentry 2 | . . . 2 Best Kill Streak 6 | . 4 4 6 Combat Bots Only 6 | . 3 2 6 Max Kills in Single Turn 2 | . 2 2 1 Gunslinging . | . . . . Exploded 2 | . 2 2 . Melee . | . . . . Uniques/NPCs Destroyed . | . . . . Combat | -11 -10 -9 -8 -------- Run | Scr Mat Mat Mat Damage Taken 2623 | . 120 470 2033 Core 710 | . 27 118 565 Absorbed by Shields . | . . . . Redirected to Shielding 47 | . . . 47 Core Remaining (%) 86 | 100 89 70 . Volleys Fired 111 | . 5 66 40 Largest 2 | . 1 2 2 Hottest 130 | . 30 130 130 Shots Fired 140 | . 5 73 62 Gun 130 | . . 68 62 Cannon . | . . . . Launcher 10 | . 5 5 . Special . | . . . . Kinetic 3 | . . . 3 Thermal 126 | . . 68 58 Explosive 10 | . 5 5 . Electromagnetic 1 | . . . 1 Robot Hit Streak 13 | . . 6 13 Robot Miss Streak 6 | . 2 6 6 Penetration Max . | . . . . Secondary Targets . | . . . . Shots Hit Robots 109 | . . 49 60 Core Hits 106 | . 6 25 75 Critical Kills . | . . . . Critical Parts Destroyed . | . . . . Critical Strikes 3 | . . 3 . Burn 3 | . . 3 . Melee Attacks . | . . . . Impact . | . . . . Slashing . | . . . . Piercing . | . . . . Sneak Attacks . | . . . . Combat Hostiles . | . . . . Follow-up Attacks . | . . . . Damage Inflicted 2025 | . 258 878 889 Guns 1450 | . . 580 870 Cannons . | . . . . Explosions 556 | . 258 298 . Melee . | . . . . Ramming 19 | . . . 19 Kinetic 48 | . . . 48 Thermal 1402 | . . 580 822 Explosive 556 | . 258 298 . Electromagnetic . | . . . . Impact . | . . . . Slashing . | . . . . Piercing . | . . . . Highest Corruption 22 | . . . 22 Average Corruption 17 | . . . 17 Corruption Purged . | . . . . Corruption Blocked . | . . . . Effects 1 | . . . 1 Energy Discharges 1 | . . . 1 Overload Shots . | . . . . Overflow Damage . | . . . . Projectiles . | . . . . Explosions . | . . . . Melee . | . . . . Knockbacks . | . . . . Impact . | . . . . Kinetic . | . . . . Secondary . | . . . . Self-Inflicted Damage 37 | . 30 . 7 Shots 2 | . 2 . . Rammed 11 | . . . 11 Targets Rammed 11 | . . . 11 Kicked . | . . . . Crushed . | . . . . Highest Temperature 384 | . . 252 384 Average Temperature 112 | . . 78 149 Received Heat Transfer 648 | . . 309 339 Effects 3 | . . . 3 Energy Bleed 2 | . . . 2 Matter Decay 1 | . . . 1 Siege Activations . | . . . . Robots Corrupted . | . . . . Combat Hostiles . | . . . . Parts Fried . | . . . . Impact Corruptions . | . . . . Robots Melted . | . . . . Combat Hostiles . | . . . . Parts Melted 6 | . . 5 1 Heat Transferred 2805 | . . 1785 1020 Parts Sabotaged . | . . . . Parts Stolen . | . . . . Parts Stripped . | . . . . Power Chain Reactions . | . . . . Missiles Intercepted . | . . . . Alert | -11 -10 -9 -8 ------- Run | Scr Mat Mat Mat Peak Influence 361 | . 149 361 210 Initial 62 | . . 62 16 Average 129 | . 80 220 81 Maximum Alert Level 1 | . . 1 1 Low Security (%) 69 | 100 100 42 79 Level 1 30 | . . 57 20 Level 2 . | . . . . Level 3 . | . . . . Level 4 . | . . . . Level 5 . | . . . . High Security . | . . . . Max Security . | . . . . Squads Dispatched 5 | . . 1 4 Investigation 1 | . . 1 . Extermination . | . . . . Reinforcement 4 | . . . 4 Assault . | . . . . Garrison . | . . . . Intercept . | . . . . Searches Triggered . | . . . . Construction Impeded 1 | . . . 1 Haulers Reinforced . | . . . . Active Scanning Responses . | . . . . Cargo Convoy Interrupts . | . . . . Stealth | -11 -10 -9 -8 --------- Run | Scr Mat Mat Mat Distress Signals 3 | . 1 . 2 Communications Jammed . | . . . . Distress Signals . | . . . . Times Spotted 46 | . 5 12 29 Peak Tracking Total 8 | . 5 3 8 Tactical Retreats 2 | . . . 2 Traps | -11 -10 -9 -8 ------- Run | Scr Mat Mat Mat Traps Triggered 2 | . . 2 . Indirectly . | . . . . Trap Hack Attempts . | . . . . Triggered . | . . . . Disarmed . | . . . . Reprogrammed . | . . . . Reused . | . . . . Traps Extracted . | . . . . Installed . | . . . . Triggered . | . . . . Machines | -11 -10 -9 -8 ---------- Run | Scr Mat Mat Mat Machines Disabled 2 | . 2 . . Max in Single Turn 1 | . 1 . . Machines Sabotaged . | . . . . Garrisons Compromised . | . . . . Overloaded Fab Kills . | . . . . Hacking | -11 -10 -9 -8 --------- Run | Scr Mat Mat Mat Machines Accessed 6 | . 1 3 2 Terminals 6 | . 1 3 2 Fabricators . | . . . . Repair Stations . | . . . . Recycling Units . | . . . . Scanalyzers . | . . . . Garrison Access . | . . . . Total Hacks 16 | . 2 10 4 Successful 5 | . . 4 1 Failed 11 | . 2 6 3 Catastrophic 4 | . 1 1 2 Database Lockouts . | . . . . Manual 10 | . 2 6 2 Terminals 16 | . 2 10 4 Fabricators . | . . . . Repair Stations . | . . . . Recycling Units . | . . . . Scanalyzers . | . . . . Garrison Access . | . . . . Terminal Hacks 4 | . . 3 1 Alert Level 1 | . . 1 . Unreport Threat 1 | . . 1 . Dispatch Records 1 | . . 1 . Recall Reinforcements 1 | . . . 1 Fabricator Hacks . | . . . . Repair Station Hacks . | . . . . Recycling Unit Hacks . | . . . . Scanalyzer . | . . . . Garrison Access Hacks . | . . . . Unauthorized Hacks 1 | . . 1 . Terminals 1 | . . 1 . Botnet 1 | . . 1 . Fabricators . | . . . . Repair Stations . | . . . . Recycling Units . | . . . . Scanalyzers . | . . . . Garrison Access . | . . . . Data Cores Recovered . | . . . . Used . | . . . . Hacking Detections 5 | . 1 3 1 Full Trace Events 1 | . . 1 . Feedback Events . | . . . . Feedback Blocked . | . . . . Robot Schematics Acquired . | . . . . Robots Built . | . . . . Authchips . | . . . . Time . | . . . . Total Robot Build Rating . | . . . . Part Schematics Acquired . | . . . . Parts Built . | . . . . Authchips . | . . . . Time . | . . . . Total Part Build Rating . | . . . . Parts Repaired . | . . . . Time . | . . . . Parts Recycled . | . . . . Recycled Matter . | . . . . Retrieved Matter . | . . . . Retrieved Components . | . . . . Parts Scanalyzed . | . . . . Part Schematics Acquired . | . . . . Parts Damaged . | . . . . Bothacking | -11 -10 -9 -8 ------------ Run | Scr Mat Mat Mat Used RIF Installer . | . . . . Robots Hacked . | . . . . Non-combat . | . . . . Combat . | . . . . Robot Hacks Applied . | . . . . Relay Couplers Released . | . . . . Fabnet Peak Effective % . | . . . . Robots Rewired . | . . . . Allies Hacked . | . . . . Hacks Repelled . | . . . . Allies | -11 -10 -9 -8 -------- Run | Scr Mat Mat Mat Total Allies . | . . . . Largest Group . | . . . . Highest-Rated Group . | . . . . Highest-Rated Ally . | . . . . Total Orders . | . . . . Ally Attacks . | . . . . Total Damage . | . . . . Kills . | . . . . Allies Corrupted . | . . . . Allies Melted . | . . . . Intel | -11 -10 -9 -8 ------- Run | Scr Mat Mat Mat Robot Analysis Total . | . . . . Derelict Logs Recovered . | . . . . Drone Launches . | . . . . Drone Recoveries . | . . . . Exploration | -11 -10 -9 -8 ------------- Run | Scr Mat Mat Mat Turns Passed 1304 | 47 174 475 608 Spaces Moved 730 | 37 133 236 324 Core 69 | 8 . . 61 Treads 163 | . . . 163 Legs 442 | 29 133 236 44 Wheels 2 | . . . 2 Hover 54 | . . . 54 Flight . | . . . . Fastest Speed 50 | 50 120 120 50 Average Speed 124 | 107 120 120 132 Slowest Speed 190 | 120 120 120 190 Overloaded Moves . | . . . . Propulsion Burnouts . | . . . . Robots Hopped . | . . . . Cave-ins Triggered . | . . . . Exploration Rate (%) 22 | 3 35 21 31 Regions Visited 3 Branch Regions . Pre-discovered Areas . | . . . . Known Exits Taken 1 | . . 1 . Unknown Exits Taken 2 | 1 1 . . Scrap Searched . | . . . . Spaces Dug . | . . . . Terrain Destroyed 49 | . 9 40 . Melee . | . . . . Projectile . | . . . . AOE 49 | . 9 40 . Terrain Rammed . | . . . . Walls Destroyed . | . . . . Machines Disabled . | . . . . Actions | -11 -10 -9 -8 --------- Run | Scr Mat Mat Mat Total 962 | 41 141 350 430 Wait 62 | . . 35 27 Move 727 | 36 132 235 324 Hop . | . . . . Pick Up 4 | . 2 1 1 Fast Attach 31 | 5 1 9 16 Attach 4 | . . . 4 Detach . | . . . . Swap 6 | . 1 3 2 Drop 6 | . . 1 5 Fire 111 | . 5 66 40 Melee . | . . . . Ram 3 | . . . 3 Kick . | . . . . Crush 8 | . . . 8 Escape Stasis . | . . . . Rewire . | . . . . Trap . | . . . . Miscellaneous . | . . . . Route ------- -11/Scrapyard -10/Materials -9/Materials -8/Materials History --------- Turn | Location | Event 4 | -11/Scrapyard | Discovered new exit (range 16) 48 | -11/Scrapyard | Entered Materials 189 | -10/Materials | Discovered new exit (range 15) 222 | -10/Materials | Entered another Materials area 222 | -9/Materials | Evolved 2 slots: Utility x2 329 | -9/Materials | Build established: Mutant 583 | -9/Materials | Discovered new exit (range 5) 696 | -9/Materials | Identified exit to Materials 697 | -9/Materials | Entered another Materials area 697 | -8/Materials | Evolved 2 slots: Propulsion x1, Utility x1 1072 | -8/Materials | Build established: Scavenger-Mutant 1224 | -8/Materials | Core integrity fell below 50% 1264 | -8/Materials | System corruption reached 10% 1269 | -8/Materials | Core integrity fell below 20% 1305 | -8/Materials | Lost 18 parts (3p7n4u4w) 1305 | -8/Materials | Destroyed by L-31 Rogue with Katana Last Messages --------------- 01272_ U-05 Engineer lays Concrete. 01272_ K-01 Serf collects debris. 01272_ Critical hit (Burn: +37). 01272_ U-05 Engineer lays Concrete. 01273_ Slammed into Y-45 Defender. 01274_ K-01 Serf collects debris. 01274_ Lgt. Ion Engine destroyed. 01274_ Slammed into Y-45 Defender. 01274_ U-05 Engineer lays Concrete. 01275_ K-01 Serf collects debris. 01275_ U-05 Engineer lays Concrete. 01275_ Slammed into Y-45 Defender. 01275_ U-05 Engineer lays Concrete. 01275_ Critical hit (Burn: +37). 01275_ U-05 Engineer lays Concrete. 01288_ ALERT: Hostiles spotted, dispatching reinforcements to Terminal M006. 01298_ Acquired Adv. Visual Processing Unit. 01303_ Acquired Katana. 01304_ Drone sends a signal. Map ----- +----------------------------------------------------+ | ?????????????????????????? # # T # # | | ?????????????????????????? # # # # | | ?????????????????????????? # # # # | | ?????????????????????????? # # # # | | ?????????????????????????? # # ! # % % # | | ??????????????????????????## ######## %% # | | ??????????????????????????## ######## %= # | | ??????????????????????????## ##?????# = # | | ??????????????????????????## ##?????# % # | | ?????????????????????????? # ##?????### ! ##### | | ?????????????????????????? # ##????* # " ##???? | | ?????????????????????????? + ## # "#??## # | | ?????????????????????????? # ?# """ # ##? | | ???????????????????????????? ?# """"" #%## """ | | ???????????????????????????? ?#??"""""?#% / """ | | ????????????????????????#+#????????""""?# ## """ | | ????????????????????????# #??????????? ?# #????? | | ????????????????????????# #?????????????# #??????? | | ????????????????????????# #?????????????# #??????? | | ????????????????????????# # ##/####### ##?????? | | ????????????????????????# # ! #?????? | | ????????????????????????# # +?????? | | ????????????????????????# # #?????? | | ????????????????????????# #### """ """ #?????? | | ????????????????????????# #??# """ """ #?????? | | ???????????????##########@#### """ """ ##????? | | ???????????????# /l #????? | | ???????????????# """ # g #????? | | ???????????????# """ # n ##+#####??? | | ???????????????# """ # g#########+### #? | | ???????????????# # #### "" # """ #? | | ???????????????# ! + + ""S ! # "G" #? | | ???????????????# # #### "" #/ " " #? | | ???????????????#/ "T" ## #??# # #? | | ???????????????# ! """ ##w#### # """ #? | | ???????????????########### + """ # """ #? | | ?????????????????????????###### """ # """ #? | | ??????????????????????????????# """ # #? | | ??????????????????????????????# #####??###? | | ??????????????????????????????##########?????????? | | | | | | | | | | | | | | | | | | | | | +----------------------------------------------------+ Best States ------------- Heat Dissipation 31 Energy Generation 14 Energy Capacity 265 Matter Stores 300 Matter Capacity 300 Sight Range 20 Terrain Scan Density 85 Armor Coverage 150 Core Shielding 20 Evasion (%) 55 Recoil Reduction 2 Item Schematics ----------------- None Robot Schematics ------------------ None Fabricated ------------ Nothing Alien Tech Used ----------------- None Achievements -------------- None Challenges ------------ None Game ------ Seed SmartbombMetafiberComputer Manual? 0 Play Time 00:12:31 Cumulative 131.5 hours Start 2022.09.22 @ 00:05:45 End 2022.09.22 @ 00:16:43 Sessions 1 Manual Loads 0 Difficulty Rogue Special Mode None Game No. 107 Rogue 104 Adventurer 3 Explorer 0 Win Type - Total 1 Types 1/0/0/0/0/0/0/0/0 Lore% 54 Gallery% 53 Achievement% 48 Wizard Run 0 Options --------- ASCII 0 Keyboard 0 Movement Numpad Keybinds 0 Fullscreen 1 Font 18/SmallcapsGlow Map View 76x50 Tactical HUD 1 Map Filters NONE Filters NONE Steam 1 RUN: dd862df4-37c6-4715-9a8f-719e61f62c5b